Cogmind - Beta 13 @@@ ROGUE MODE // 2024.04.12 @ 01:57:34 Player: luckinvolved Result: Destroyed by G-47 Trooper with Particle Gun Performance ------------- Evolutions (3) 1500 Regions Visited (5) 1000 Robots Destroyed (65) 325 Value Destroyed (1875) 1875 Prototype IDs (9) 180 Alien Tech Used (0) 0 Bonus (30) 30 TOTAL SCORE: 4910 Bonus ------- High Alert Combat Kills 30 Cogmind --------- Core Integrity 0/700 Matter 195/300 Energy 310/310 System Corruption 3% Temperature Cool (9) Movement Hovering (290) Ox4 Location -7/Storage Parts ------- > --- POWER (1) -------- Heavy Deuterium Engine > --- PROPULSION (4) --- Improved Airjet Improved Cesium-ion Thruster > --- UTILITY (6) ------ Large Storage Unit Improved Signal Interpreter > --- WEAPON (2) ------- Precision Grenade Launcher > --- INVENTORY (15) --- Light Nuclear Core Huge Storage Unit Large Matter Pod (150) Transmission Jammer Pulse Rifle Pulse Rifle Heavy Particle Cannon Peak State ------------ > --- POWER ------------ Heavy Deuterium Engine > --- PROPULSION ------- Light Treads Light Treads Improved Airjet Improved Cesium-ion Thruster > --- UTILITY ---------- Large Storage Unit Improved Signal Interpreter Improved Light Armor Plating > --- WEAPON ----------- Improved Spread Laser Precision Grenade Launcher > --- INVENTORY -------- Huge Storage Unit Large Matter Pod Transmission Jammer Pulse Rifle Pulse Rifle Heavy Particle Cannon [Rating: 35] Favorites ----------- Power Ion Engine Engine Ion Engine Power Core Light Nuclear Core Propulsion Improved Treads Treads Improved Treads Leg Aluminum Leg Hover Unit Improved Airjet Flight Unit Improved Cesium-ion Thruster Utility Large Storage Unit Device Sensor Array Storage Large Storage Unit Processor Signal Interpreter Protection Improved Light Armor Plating Weapon Beam Rifle Energy Gun Beam Rifle Energy Cannon EM Pulse Cannon Ballistic Gun Heavy Assault Rifle Ballistic Cannon Flak Cannon Launcher Precision Grenade Launcher Special Weapon Mining Laser Build | -11 -10 -9 -8 -7 -7 ------- Run | Yrd Mat Mat Mat Fac Sto Slots Evolved 6 | . . 2 2 2 . Power . | . . . . . . Propulsion 2 | . . . 2 . . Utility 4 | . . 2 . 2 . Weapon . | . . . . . . Parts Attached 89 | 9 8 26 13 16 17 Power 7 | 1 . 1 1 3 1 Engine 5 | 1 . 1 1 1 1 Core 2 | . . . . 2 . Reactor . | . . . . . . Propulsion 25 | 4 2 5 6 1 7 Treads 20 | 2 2 4 6 1 5 Leg 2 | 2 . . . . . Wheel . | . . . . . . Hover 1 | . . . . . 1 Flight 2 | . . 1 . . 1 Utility 24 | 2 2 7 4 8 1 Device 5 | 1 . 3 1 . . Storage 5 | 1 1 1 2 . . Processor 2 | . . 1 1 . . Hackware . | . . . . . . Protection 12 | . 1 2 . 8 1 Artifact . | . . . . . . Weapon 33 | 2 4 13 2 4 8 Energy Gun 16 | . . 10 1 2 3 Energy Cannon 5 | . . . 1 1 3 Ballistic Gun 6 | 2 3 1 . . . Ballistic Cannon 1 | . . . . 1 . Launcher 4 | . . 2 . . 2 Special Weapon 1 | . 1 . . . . Impact Weapon . | . . . . . . Slashing Weapon . | . . . . . . Piercing Weapon . | . . . . . . Special Melee Weapon . | . . . . . . Unidentified Prototypes 9 | . . 2 . . 7 Parts Lost 40 | . 1 5 3 16 15 Power 5 | . . . 1 3 1 Propulsion 12 | . . 2 1 4 5 Utility 12 | . 1 1 1 5 4 Weapon 11 | . . 2 . 4 5 Highest Loss Streak 9 | . 1 5 2 7 9 To Critical Strikes . | . . . . . . Average Slot Usage (%) 87 | . 99 98 96 79 52 Engine 7 | . 14 11 9 2 2 Core 1 | . . . . 3 1 Treads 20 | . 23 21 35 16 8 Device 7 | . 4 10 5 7 1 Storage 9 | . 14 11 9 7 7 Processor 7 | . . 11 9 7 7 Protection 12 | . 8 10 9 20 7 Energy Gun 10 | . . 18 15 6 4 Ballistic Gun 3 | . 20 2 . . . Ballistic Cannon 1 | . . . . 3 . Special Weapon 1 | . 7 . . . . Naked Turns . | . . . . . . Heaviest Build 95 | 15 34 38 95 51 44 Greatest Support 92 | 20 46 46 92 92 48 Greatest Overweight (x) 12 | 4 . 1 1 2 12 Average Overweight (x) . | 3 . . . . 1 Largest Inventory Capacity 25 | 8 15 15 25 15 15 Average Capacity 13 | 7 10 15 15 15 15 Most Carried 15 | 8 12 15 13 12 8 Average Carried 10 | 6 8 14 12 9 6 Final Capacity 15 | 8 15 15 15 15 15 Final Carried 14 | 4 12 14 11 8 7 Class Distribution -------------------- 96% | Mutant 3% | Scavenger-Mutant Dominant Class ---------------- Mutant | -10/Materials Mutant | -9/Materials Mutant | -8/Materials Mutant | -7/Factory Mutant | -7/Storage Resources | -11 -10 -9 -8 -7 -7 ----------- Run | Yrd Mat Mat Mat Fac Sto Matter Collected 1449 | 219 65 668 115 241 141 Remotely . | . . . . . . Salvage Created 1970 | 77 65 847 314 349 318 Parts 109 | 4 5 62 9 15 14 Haulers Intercepted 2 | . . 2 . . . Recyclers Shooed . | . . . . . . Parts Field Recycled . | . . . . . . Retrieved Matter . | . . . . . . Parts Self-Destructed . | . . . . . . Prevented . | . . . . . . Kills | -11 -10 -9 -8 -7 -7 ------- Run | Yrd Mat Mat Mat Fac Sto Combat Hostiles Destroyed 49 | . 3 26 7 8 5 Guns 29 | . 3 18 6 1 1 Cannons 8 | . . . . 7 1 AOE 11 | . . 8 . . 3 Classes Destroyed 12 | 2 2 3 1 3 1 Worker 4 | . . . . 2 2 Builder 2 | . . . . . 2 Tunneler 1 | 1 . . . . . Hauler 2 | . . 2 . . . Recycler 2 | 1 . . . . 1 Watcher 5 | . 1 4 . . . Swarmer 14 | . 3 11 . . . Grunt 23 | . . 11 5 4 3 Brawler 1 | . . . . 1 . Sentry 8 | . . 4 1 1 2 Hunter 1 | . . . 1 . . Programmer 2 | . . . . 2 . Best Kill Streak 11 | 2 3 11 2 5 6 Combat Bots Only 11 | . 3 11 2 4 3 Max Kills in Single Turn 4 | 1 1 3 1 1 4 Gunslinging . | . . . . . . Exploded 3 | . . 3 . . 2 Melee . | . . . . . . Uniques/NPCs Destroyed . | . . . . . . Combat | -11 -10 -9 -8 -7 -7 -------- Run | Yrd Mat Mat Mat Fac Sto Hostile Shots Fired 773 | . 11 162 98 175 327 Missed 253 | . 1 45 23 61 123 Damage Taken 6352 | . 276 1202 1065 1703 2106 Core 1089 | . 22 229 135 220 483 Absorbed by Shields . | . . . . . . Redirected to Shielding 316 | . . . . 241 75 Core Remaining (%) 77 | 100 91 42 75 . . Volleys Fired 183 | 10 18 76 32 31 16 Largest 2 | 2 2 2 2 2 2 Hottest 150 | 40 120 121 126 126 150 Shots Fired 334 | 20 25 144 63 58 24 Gun 266 | 20 14 139 55 24 14 Cannon 47 | . . . 8 34 5 Launcher 10 | . . 5 . . 5 Special 11 | . 11 . . . . Kinetic 75 | 20 14 13 . 28 . Thermal 212 | . 11 126 55 12 8 Explosive 10 | . . 5 . . 5 Electromagnetic 37 | . . . 8 18 11 Robot Hit Streak 12 | 8 6 9 9 12 12 Robot Miss Streak 10 | 3 2 10 3 4 6 Penetration Max . | . . . . . . Secondary Targets 4 | . 2 1 1 . . Max Gunslinging Chain 1 | . 1 1 1 . . Shots Hit Robots 206 | 12 8 81 43 44 18 Core Hits 127 | 2 4 41 17 36 27 Critical Kills . | . . . . . . Critical Parts Destroyed . | . . . . . . Critical Strikes 10 | . . 6 2 2 . Burn 10 | . . 6 2 2 . Melee Attacks . | . . . . . . Impact . | . . . . . . Slashing . | . . . . . . Piercing . | . . . . . . Sneak Attacks . | . . . . . . Combat Hostiles . | . . . . . . Follow-up Attacks . | . . . . . . Damage Inflicted 4661 | 141 121 1768 776 844 1011 Guns 2529 | 141 121 1238 625 184 220 Cannons 840 | . . . 151 617 72 Explosions 1292 | . . 530 . 43 719 Melee . | . . . . . . Ramming . | . . . . . . Kinetic 854 | 141 121 107 . 485 . Thermal 2202 | . . 1131 625 196 250 Explosive 1102 | . . 530 . . 572 Electromagnetic 503 | . . . 151 163 189 Impact . | . . . . . . Slashing . | . . . . . . Piercing . | . . . . . . Highest Corruption 5 | . 5 . . 3 3 Average Corruption 3 | . 5 . . 2 3 Corruption Purged . | . . . . . . Corruption Blocked . | . . . . . . Effects 27 | . 10 . . 8 9 Message Errors 4 | . 1 . . 2 1 Matter Fused 7 | . 1 . . 2 4 Heat Flow Errors 7 | . 4 . . 1 2 Energy Discharges 2 | . 2 . . . . Parts Rejected 1 | . . . . 1 . Parts Fused 1 | . . . . 1 . Data Loss (minor) 2 | . 1 . . 1 . Misfires 1 | . 1 . . . . Alerts 2 | . . . . . 2 Overload Shots . | . . . . . . Overflow Damage 57 | . . 13 . 33 11 Projectiles . | . . . . . . Explosions 57 | . . 13 . 33 11 Melee . | . . . . . . Knockbacks 20 | . . . . 20 . Impact . | . . . . . . Kinetic 20 | . . . . 20 . Secondary . | . . . . . . Self-Inflicted Damage 434 | . . 42 . 198 194 Shots 12 | . . 2 . 3 7 Rammed . | . . . . . . Targets Rammed . | . . . . . . Kicked . | . . . . . . Crushed . | . . . . . . Highest Temperature 404 | . 191 340 404 290 326 Average Temperature 103 | . 35 99 141 122 82 Received Heat Transfer 2049 | . . 315 378 576 780 Effects 9 | . . 3 5 . 1 Shutdowns 2 | . . . 2 . . Energy Bleed 2 | . . 1 . . 1 Interference 4 | . . 1 3 . . Matter Decay 1 | . . 1 . . . Siege Activations . | . . . . . . Robots Corrupted 1 | . . . 1 . . Combat Hostiles 1 | . . . 1 . . Parts Fried 3 | . . . 2 . 1 Impact Corruptions . | . . . . . . Robots Melted . | . . . . . . Combat Hostiles . | . . . . . . Parts Melted 11 | . . 7 1 3 . Heat Transferred 5593 | . . 3256 1591 494 252 Parts Sabotaged . | . . . . . . Parts Stolen . | . . . . . . Parts Stripped . | . . . . . . Power Chain Reactions 3 | . . . . 1 2 Alert | -11 -10 -9 -8 -7 -7 ------- Run | Yrd Mat Mat Mat Fac Sto Peak Influence 447 | 10 89 428 447 243 171 Initial 203 | . 6 . 180 203 29 Average 140 | 3 20 191 281 156 57 Maximum Alert Level 2 | . . 2 2 1 . Low Security (%) 65 | 100 100 54 33 50 100 Level 1 30 | . . 35 58 49 . Level 2 3 | . . 9 8 . . Level 3 . | . . . . . . Level 4 . | . . . . . . Level 5 . | . . . . . . High Security . | . . . . . . Max Security . | . . . . . . Squads Dispatched 17 | . . 6 5 3 3 Investigation 4 | . . 2 2 . . Extermination 2 | . . . . 2 . Reinforcement 8 | . . 4 . 1 3 Assault . | . . . . . . Garrison 3 | . . . 3 . . Intercept . | . . . . . . Searches Triggered . | . . . . . . Construction Impeded 1 | . . . . . 1 Haulers Reinforced 1 | . . . . . 1 Active Scanning Responses . | . . . . . . Cargo Convoy Interrupts . | . . . . . . Stealth | -11 -10 -9 -8 -7 -7 --------- Run | Yrd Mat Mat Mat Fac Sto Distress Signals 3 | . . 2 1 . . Communications Jammed . | . . . . . . Distress Signals . | . . . . . . Times Spotted 81 | . 4 40 17 10 10 Peak Tracking Total 7 | . 3 7 5 4 5 Tactical Retreats 3 | . . . 3 . . Traps | -11 -10 -9 -8 -7 -7 ------- Run | Yrd Mat Mat Mat Fac Sto Traps Triggered 3 | . . 2 . . 1 Indirectly . | . . . . . . Trap Hack Attempts . | . . . . . . Triggered . | . . . . . . Disarmed . | . . . . . . Reprogrammed . | . . . . . . Reused . | . . . . . . Traps Extracted . | . . . . . . Installed . | . . . . . . Triggered . | . . . . . . Machines | -11 -10 -9 -8 -7 -7 ---------- Run | Yrd Mat Mat Mat Fac Sto Machines Disabled 7 | . . . 1 4 2 Max in Single Turn 2 | . . . 1 2 1 Machines Repaired . | . . . . . . Machines Dismantled . | . . . . . . Machines Sabotaged . | . . . . . . Overloaded Fab Kills . | . . . . . . Hacking | -11 -10 -9 -8 -7 -7 --------- Run | Yrd Mat Mat Mat Fac Sto Machines Accessed 9 | . 1 4 2 2 . Terminals 7 | . 1 4 1 1 . Fabricators 1 | . . . . 1 . Repair Stations . | . . . . . . Recycling Units . | . . . . . . Scanalyzers 1 | . . . 1 . . Garrison Access . | . . . . . . Total Hacks 19 | . 3 5 8 3 . Successful 8 | . 1 . 6 1 . Failed 11 | . 2 5 2 2 . Catastrophic 6 | . . 3 2 1 . Database Lockouts . | . . . . . . Manual 11 | . 3 5 2 1 . Terminals 12 | . 3 5 2 2 . Fabricators 1 | . . . . 1 . Repair Stations . | . . . . . . Recycling Units . | . . . . . . Scanalyzers 6 | . . . 6 . . Garrison Access . | . . . . . . Terminal Hacks 2 | . 1 . . 1 . Record 1 | . . . . 1 . Level Access Points 1 | . 1 . . . . Fabricator Hacks . | . . . . . . Repair Station Hacks . | . . . . . . Recycling Unit Hacks . | . . . . . . Scanalyzer 6 | . . . 6 . . Insert Component 3 | . . . 3 . . Analyze 3 | . . . 3 . . Garrison Access Hacks . | . . . . . . Unauthorized Hacks . | . . . . . . Terminals . | . . . . . . Fabricators . | . . . . . . Repair Stations . | . . . . . . Recycling Units . | . . . . . . Scanalyzers . | . . . . . . Garrison Access . | . . . . . . Data Cores Recovered . | . . . . . . Used . | . . . . . . Hacking Detections 8 | . 1 4 2 1 . Full Trace Events 2 | . . . 2 . . Feedback Events . | . . . . . . Feedback Blocked . | . . . . . . Robot Schematics Acquired . | . . . . . . Robots Built . | . . . . . . Authchips . | . . . . . . Time . | . . . . . . Total Robot Build Rating . | . . . . . . Part Schematics Acquired 2 | . . . 2 . . Parts Built . | . . . . . . Authchips . | . . . . . . Time . | . . . . . . Total Part Build Rating . | . . . . . . Parts Repaired . | . . . . . . Time . | . . . . . . Parts Recycled . | . . . . . . Recycled Matter . | . . . . . . Retrieved Matter . | . . . . . . Retrieved Components . | . . . . . . Parts Scanalyzed 3 | . . . 3 . . Part Schematics Acquired 2 | . . . 2 . . Parts Damaged 1 | . . . 1 . . Bothacking | -11 -10 -9 -8 -7 -7 ------------ Run | Yrd Mat Mat Mat Fac Sto Used RIF Installer . | . . . . . . Robots Hacked . | . . . . . . Non-combat . | . . . . . . Combat . | . . . . . . Robot Hacks Applied . | . . . . . . Relay Couplers Released . | . . . . . . Fabnet Peak Effective % . | . . . . . . Robots Rewired . | . . . . . . Allies Hacked . | . . . . . . Hacks Repelled . | . . . . . . Allies | -11 -10 -9 -8 -7 -7 -------- Run | Yrd Mat Mat Mat Fac Sto Total Allies . | . . . . . . Largest Group . | . . . . . . Highest-Rated Group . | . . . . . . Highest-Rated Ally . | . . . . . . Total Orders . | . . . . . . Ally Attacks . | . . . . . . Total Damage . | . . . . . . Kills . | . . . . . . Allies Corrupted . | . . . . . . Allies Melted . | . . . . . . Intel | -11 -10 -9 -8 -7 -7 ------- Run | Yrd Mat Mat Mat Fac Sto Robot Analysis Total . | . . . . . . Derelict Logs Recovered . | . . . . . . Drone Launches . | . . . . . . Drone Recoveries . | . . . . . . Exploration | -11 -10 -9 -8 -7 -7 ------------- Run | Yrd Mat Mat Mat Fac Sto Turns Passed 3270 | 277 439 990 397 812 355 Spaces Moved 1371 | 97 222 419 172 346 115 Core 103 | 95 . . . . 8 Treads 1242 | . 199 419 172 346 106 Legs 25 | 2 23 . . . . Wheels . | . . . . . . Hover 1 | . . . . . 1 Flight . | . . . . . . Fastest Speed 50 | 50 120 160 160 160 160 Average Speed 182 | 233 155 162 160 199 243 Slowest Speed 650 | 250 160 240 240 320 650 Overloaded Moves . | . . . . . . Propulsion Burnouts . | . . . . . . Robots Hopped . | . . . . . . Cave-ins Triggered 1 | . 1 . . . . Exploration Rate (%) 21 | 6 28 52 17 10 13 Regions Visited 5 Branch Regions 1 Pre-discovered Areas . | . . . . . . Known Exits Taken 4 | . 1 1 1 1 . Unknown Exits Taken 1 | 1 . . . . . Scrap Searched . | . . . . . . Spaces Dug 11 | . 11 . . . . Terrain Destroyed 129 | . 11 31 . 46 41 Melee . | . . . . . . Projectile 11 | . 11 . . . . AOE 118 | . . 31 . 46 41 Terrain Rammed . | . . . . . . Walls Destroyed . | . . . . . . Machines Disabled . | . . . . . . Actions | -11 -10 -9 -8 -7 -7 --------- Run | Yrd Mat Mat Mat Fac Sto Total 1781 | 125 271 586 230 408 161 Wait 51 | . . 27 4 11 9 Move 1366 | 96 221 418 171 345 115 Hop . | . . . . . . Pick Up 50 | 8 15 18 3 5 1 Fast Attach 41 | 5 3 10 4 6 13 Attach 28 | 2 2 6 6 8 4 Detach 4 | . . . 2 . 2 Swap 20 | 2 3 10 3 2 . Drop 38 | 2 9 21 5 . 1 Fire 183 | 10 18 76 32 31 16 Melee . | . . . . . . Ram . | . . . . . . Kick . | . . . . . . Crush . | . . . . . . Escape Stasis . | . . . . . . Rewire . | . . . . . . Trap . | . . . . . . Miscellaneous . | . . . . . . Route ------- -11/Scrapyard -10/Materials (discovered 3 exits: *Mat x3) -9/Materials -8/Materials -7/Factory -7/Storage History --------- Turn | Location | Event 6 | -11/Scrapyard | Discovered new exit (range 15) 278 | -11/Scrapyard | Entered Materials 306 | -10/Materials | Build established: Mutant 391 | -10/Materials | Identified exit to Materials 424 | -10/Materials | Crushed by falling debris 717 | -10/Materials | Entered another Materials area 717 | -9/Materials | Evolved 2 slots: Utility x2 1589 | -9/Materials | Discovered new exit (range 15) 1601 | -9/Materials | Core integrity fell below 50% 1624 | -9/Materials | Lost 5 parts (2n1u2w) 1631 | -9/Materials | Destroyed 11 combat bots 1705 | -9/Materials | Identified exit to Materials 1707 | -9/Materials | Entered another Materials area 1707 | -8/Materials | Evolved 2 slots: Propulsion x2 1799 | -8/Materials | Garrison activated, responded to threat 1915 | -8/Materials | Discovered new exit (range 15) 2102 | -8/Materials | Identified exit to Factory 2104 | -8/Materials | Entered Factory 2104 | -7/Factory | Evolved 2 slots: Utility x2 2404 | -7/Factory | Lost 6 parts (1p1n2u2w) 2531 | -7/Factory | Lost 7 parts (1p3n2u1w) 2827 | -7/Factory | Lost 3 parts (1p1u1w) 2901 | -7/Factory | Discovered new exit (range 6) 2913 | -7/Factory | Identified exit to Storage 2916 | -7/Factory | Entered Storage 3069 | -7/Storage | Core integrity fell below 50% 3107 | -7/Storage | Core integrity fell below 20% 3118 | -7/Storage | Lost 9 parts (3n2u4w) 3271 | -7/Storage | Destroyed by G-47 Trooper with Particle Gun Last Messages --------------- 03234_ System corrupted: Heat flow error (+254). 03236_ K-01 Serf collects debris. 03241_ Overheating: Energy bleed (-43). 03242_ Lgt. Treads destroyed. 03243_ R-06 Scavenger destroyed. 03243_ K-01 Serf collects debris. 03243_ R-06 Scavenger collects Tractor Beam. 03246_ K-01 Serf collects debris. 03246_ R-06 Scavenger collects Tractor Beam. 03247_ The unstable cave ceiling collapses. 03249_ K-01 Serf collects debris. 03249_ Acquired 30 matter. 03253_ K-01 Serf collects debris. 03257_ System corrupted: Matter fused (-10). 03258_ The unstable cave ceiling collapses. 03260_ K-01 Serf collects debris. 03260_ Lgt. Treads destroyed. 03261_ Imp. Light Armor Plating destroyed. 03261_ Imp. Spread Laser destroyed. 03262_ Critical hit (Burn: +37). Map ----- +----------------------------------------------------+ | | | | | | | | | | | | | | | ???????????????????????????????????? | | ???????????????????????????????????? | | ???????????????????????????????????? | | ???????????????????????????????????? | | ?????##############????????????????? | | ?????# ?????????????????? | | ?????# #??????????????????? | | ?????# #??????????????????? | | ?????# #??????????????????? | | ?????# ##### ####??????????????????? | | ???????????# #??????#####??????????? | | ???????????#/######## #########??? | | ???????????# # # ???? | | ???????????# """"" # # "?????? | | ????????? + " # # """??????? | | ???###+##### " "" # !"??????? | | ???? ### "" g "??????? | | ?????"" " [ %# #g"!"??????? | | ?????????# # % #@ "" #? | | ?????????# ^ g #? | | ?????????# % % ##########?? | | ?????????# / # #??????????? | | ?????????###% # #??????????? | | ?????????? ==# ## ### #??????????? | | ???????? ##?###?# #??????????? | | ?????? ![ #??????# #??????????? | | ????" [[ +??????# #??????????? | | ???? [[ #??????# #??????????? | | ??? #??????# #??????????? | | ?? #??????#% +??????????? | | ?##+##+## ???????# #??????????? | | ????????# ???????# #??????????? | | ????????# ??????? #??????????? | | ????????# ??????? ???????????? | | ????????# ??????? ???????????? | | ????????# ???????? ???????????? | | ?????????? ??????????????????????? | | ???????????????????????????????????? | | ???????????????????????????????????? | | ???????????????????????????????????? | | ???????????????????????????????????? | | ???????????????????????????????????? | | ???????????????????????????????????? | +----------------------------------------------------+ Best States ------------- Heat Dissipation 41 Energy Generation 18 Energy Capacity 310 Matter Stores 300 Matter Capacity 300 Sight Range 16 Robot Scan Range 14 Terrain Scan Range 16 Terrain Scan Density 10 Armor Coverage 450 Propulsion Shielding 66 Evasion (%) 55 Recoil Reduction 4 Item Schematics ----------------- Imp. Treads | -8/Materials | Scanalyzed Lgt. Nuclear Core | -8/Materials | Scanalyzed Robot Schematics ------------------ None Fabricated ------------ Nothing Alien Tech Used ----------------- None Achievements -------------- None Challenges ------------ None Game ------ Seed ServoReactiveDerivative Manual? 0 Play Time 00:34:15 Cumulative 20.2 hours Start 2024.04.12 @ 01:25:42 End 2024.04.12 @ 01:57:34 Sessions 1 Manual Loads 0 Difficulty Rogue Special Mode None Game No. 44 Rogue 39 Adventurer 5 Explorer 0 Win Type - Total 0 Types 0/0/0/0/0/0/0/0/0 Lore% 7 Gallery% 29 Achievement% 20 Wizard Run 0 Options --------- Layout 0 ASCII 0 Keyboard 0 Movement Mouse Keybinds 0 Fullscreen 2 Font 24/Smallcaps Map View 38x25 Zoom Use 73% Tactical HUD 1 Map Filters NONE Filters NONE Steam 1 RUN: 6f78bd50-bde5-47b1-8a24-d65da0b353d1